[Event "*** Titled Tuesday Blitz"]
[Site "Chess.com"]
[Date "2020.05.19"]
[Round "9"]
[White "2008king"]
[Black "Kislov_Oleg"]
[Result "1/2-1/2"]
[WhiteElo "2096"]
[BlackElo "2363"]
[TimeControl "180+1"]
[EndTime "13:47:17 PDT"]
[Termination "Game drawn - insufficient material"]

1. e4 {[%clk 0:03:00.9]} 1... e6 {[%clk 0:02:59.5]} 2. d4 {[%clk 0:02:58.7]}
2... d5 {[%clk 0:03:00]} 3. Nc3 {[%clk 0:02:59]} 3... Nf6 {[%clk 0:02:59.9]} 4.
e5 {[%clk 0:02:58.9]} 4... Nfd7 {[%clk 0:02:59.8]} 5. f4 {[%clk 0:02:58.2]} 5...
c5 {[%clk 0:03:00.4]} 6. Nf3 {[%clk 0:02:56.9]} 6... Nc6 {[%clk 0:03:00.9]} 7.
Be3 {[%clk 0:02:57.2]} 7... cxd4 {[%clk 0:02:52]} 8. Nxd4 {[%clk 0:02:56.1]}
8... Bc5 {[%clk 0:02:52.7]} 9. Qd2 {[%clk 0:02:50.9]} 9... Nxd4 {[%clk
0:02:52.6]} 10. Bxd4 {[%clk 0:02:50.6]} 10... Bxd4 {[%clk 0:02:53.1]} 11. Qxd4
{[%clk 0:02:51.5]} 11... Qb6 {[%clk 0:02:53.3]} 12. Qxb6 {[%clk 0:02:47.5]}
12... Nxb6 {[%clk 0:02:52.9]} 13. Nb5 {[%clk 0:02:47.4]} 13... Ke7 {[%clk
0:02:50.3]} 14. Bd3 {[%clk 0:02:45.9]} 14... Bd7 {[%clk 0:02:43.9]} 15. Nd4
{[%clk 0:02:45]} 15... Rac8 {[%clk 0:02:41.1]} 16. c3 {[%clk 0:02:43.8]} 16...
Na4 {[%clk 0:02:38.5]} 17. Rb1 {[%clk 0:02:32.1]} 17... f6 {[%clk 0:02:35.3]}
18. O-O {[%clk 0:02:30.6]} 18... h6 {[%clk 0:02:00.2]} 19. Kh1 {[%clk 0:01:48]}
19... Rhf8 {[%clk 0:01:54.1]} 20. exf6+ {[%clk 0:01:10.6]} 20... gxf6 {[%clk
0:01:52.5]} 21. Rfe1 {[%clk 0:01:08.8]} 21... Kd6 {[%clk 0:01:50.9]} 22. Bb5
{[%clk 0:01:03.3]} 22... Nc5 {[%clk 0:01:29.8]} 23. Bxd7 {[%clk 0:00:56.8]}
23... Kxd7 {[%clk 0:01:29.3]} 24. Rbd1 {[%clk 0:00:54.9]} 24... a6 {[%clk
0:01:20.3]} 25. g3 {[%clk 0:00:49.3]} 25... Kd6 {[%clk 0:01:16.8]} 26. Kg2
{[%clk 0:00:49.4]} 26... b5 {[%clk 0:01:03.2]} 27. Kf3 {[%clk 0:00:44.3]} 27...
Ne4 {[%clk 0:00:50.7]} 28. Nxb5+ {[%clk 0:00:37.7]} 28... axb5 {[%clk
0:00:48.7]} 29. Rxe4 {[%clk 0:00:38]} 29... Rc4 {[%clk 0:00:40.2]} 30. Rxc4
{[%clk 0:00:36]} 30... bxc4 {[%clk 0:00:41.1]} 31. b3 {[%clk 0:00:36.5]} 31...
cxb3 {[%clk 0:00:39.3]} 32. axb3 {[%clk 0:00:37.4]} 32... Rb8 {[%clk 0:00:39.4]}
33. b4 {[%clk 0:00:35.5]} 33... Rc8 {[%clk 0:00:39.1]} 34. Rd3 {[%clk
0:00:35.7]} 34... e5 {[%clk 0:00:33.6]} 35. fxe5+ {[%clk 0:00:32.1]} 35... fxe5
{[%clk 0:00:33.4]} 36. Re3 {[%clk 0:00:32]} 36... Rf8+ {[%clk 0:00:28.1]} 37.
Ke2 {[%clk 0:00:31.2]} 37... Ra8 {[%clk 0:00:26.5]} 38. Kf3 {[%clk 0:00:25.4]}
38... Ra2 {[%clk 0:00:24.6]} 39. h4 {[%clk 0:00:24.6]} 39... d4 {[%clk
0:00:18.3]} 40. cxd4 {[%clk 0:00:17.6]} 40... exd4 {[%clk 0:00:19.2]} 41. Re8
{[%clk 0:00:18]} 41... Kd5 {[%clk 0:00:18.8]} 42. Rd8+ {[%clk 0:00:16.2]} 42...
Kc4 {[%clk 0:00:19.1]} 43. b5 {[%clk 0:00:16.5]} 43... Rb2 {[%clk 0:00:18.6]}
44. Rd6 {[%clk 0:00:14.9]} 44... h5 {[%clk 0:00:16.7]} 45. g4 {[%clk 0:00:14.2]}
45... Rxb5 {[%clk 0:00:16.5]} 46. gxh5 {[%clk 0:00:13.6]} 46... Rxh5 {[%clk
0:00:17.1]} 47. Kg4 {[%clk 0:00:14.2]} 47... Rh8 {[%clk 0:00:16.1]} 48. h5
{[%clk 0:00:14.4]} 48... d3 {[%clk 0:00:16.3]} 49. h6 {[%clk 0:00:13.2]} 49...
Kc3 {[%clk 0:00:16.6]} 50. Kg5 {[%clk 0:00:13.2]} 50... d2 {[%clk 0:00:17.2]}
51. Kg6 {[%clk 0:00:11.7]} 51... Kc2 {[%clk 0:00:16.6]} 52. Kg7 {[%clk
0:00:11.7]} 52... Re8 {[%clk 0:00:14.3]} 53. h7 {[%clk 0:00:11.5]} 53... d1=Q
{[%clk 0:00:13.2]} 54. Rxd1 {[%clk 0:00:11.1]} 54... Kxd1 {[%clk 0:00:14.1]} 55.
h8=Q {[%clk 0:00:11.4]} 55... Rxh8 {[%clk 0:00:14.6]} 56. Kxh8 {[%clk
0:00:12.3]} 1/2-1/2

[Event "*** Titled Tuesday Blitz"]
[Site "Chess.com"]
[Date "2020.05.19"]
[Round "9"]
[White "S_Kalvaitis"]
[Black "PauloCesarCosta_sad"]
[Result "1/2-1/2"]
[WhiteElo "2329"]
[BlackElo "2203"]
[TimeControl "180+1"]
[EndTime "13:47:21 PDT"]
[Termination "Game drawn by repetition"]

1. d4 {[%clk 0:03:00.9]} 1... d5 {[%clk 0:02:59.6]} 2. Nf3 {[%clk 0:02:59.3]}
2... Nf6 {[%clk 0:02:58.8]} 3. Bf4 {[%clk 0:02:59.2]} 3... e6 {[%clk 0:02:58]}
4. e3 {[%clk 0:02:59.6]} 4... Bd6 {[%clk 0:02:58]} 5. Bg3 {[%clk 0:02:59.9]}
5... c5 {[%clk 0:02:47.2]} 6. c3 {[%clk 0:02:57.9]} 6... Qc7 {[%clk 0:02:36.9]}
7. Ne5 {[%clk 0:02:44.7]} 7... Nbd7 {[%clk 0:02:18.9]} 8. f4 {[%clk 0:02:44.4]}
8... Ne4 {[%clk 0:02:11.7]} 9. Nd2 {[%clk 0:02:43.4]} 9... Nxg3 {[%clk 0:01:58]}
10. hxg3 {[%clk 0:02:44.3]} 10... cxd4 {[%clk 0:01:58.4]} 11. exd4 {[%clk
0:02:43.5]} 11... g6 {[%clk 0:01:59.3]} 12. Bd3 {[%clk 0:02:41]} 12... Nxe5
{[%clk 0:01:49]} 13. fxe5 {[%clk 0:02:40.4]} 13... Be7 {[%clk 0:01:49.4]} 14.
Nf3 {[%clk 0:02:35.3]} 14... Bd7 {[%clk 0:01:42.9]} 15. Qd2 {[%clk 0:02:34.6]}
15... f5 {[%clk 0:01:36.4]} 16. O-O-O {[%clk 0:01:58.9]} 16... O-O-O {[%clk
0:01:30.3]} 17. Kb1 {[%clk 0:01:58.1]} 17... Kb8 {[%clk 0:01:25.1]} 18. Rc1
{[%clk 0:01:17.9]} 18... h5 {[%clk 0:01:09.8]} 19. Ng5 {[%clk 0:01:15.6]} 19...
Rc8 {[%clk 0:01:03]} 20. c4 {[%clk 0:01:03.5]} 20... Qc6 {[%clk 0:01:03.1]} 21.
c5 {[%clk 0:01:00.1]} 21... Rhf8 {[%clk 0:01:00.7]} 22. Nf3 {[%clk 0:00:48.8]}
22... Rc7 {[%clk 0:00:53.6]} 23. Rc3 {[%clk 0:00:48.8]} 23... Rcc8 {[%clk
0:00:47.4]} 24. Rb3 {[%clk 0:00:48.8]} 24... Qc7 {[%clk 0:00:41.1]} 25. Rc1
{[%clk 0:00:47.6]} 25... Ba4 {[%clk 0:00:34.6]} 26. Rb4 {[%clk 0:00:45.6]} 26...
Bc6 {[%clk 0:00:34.8]} 27. Rb3 {[%clk 0:00:40.6]} 27... Ba4 {[%clk 0:00:34.1]}
28. Ra3 {[%clk 0:00:41.1]} 28... Bc6 {[%clk 0:00:32.6]} 29. Rcc3 {[%clk
0:00:41.3]} 29... g5 {[%clk 0:00:27.1]} 30. Nxg5 {[%clk 0:00:30.3]} 30... Bxg5
{[%clk 0:00:26.8]} 31. Qxg5 {[%clk 0:00:30.8]} 31... Rg8 {[%clk 0:00:25.8]} 32.
Qf6 {[%clk 0:00:26.2]} 32... Bd7 {[%clk 0:00:17.5]} 33. Be2 {[%clk 0:00:26.3]}
33... Rcf8 {[%clk 0:00:16.6]} 34. Qh4 {[%clk 0:00:26.1]} 34... Rh8 {[%clk
0:00:14.1]} 35. Rab3 {[%clk 0:00:25.9]} 35... Ka8 {[%clk 0:00:12]} 36. Rb4
{[%clk 0:00:20.5]} 36... Bc6 {[%clk 0:00:11.4]} 37. Rcb3 {[%clk 0:00:20.4]}
37... Qg7 {[%clk 0:00:10.7]} 38. a4 {[%clk 0:00:18.7]} 38... Rfg8 {[%clk
0:00:10.5]} 39. a5 {[%clk 0:00:17.9]} 39... Qg5 {[%clk 0:00:10.7]} 40. Qh2
{[%clk 0:00:14.2]} 40... h4 {[%clk 0:00:09.9]} 41. gxh4 {[%clk 0:00:14.5]} 41...
Qxg2 {[%clk 0:00:09.5]} 42. Qxg2 {[%clk 0:00:13.8]} 42... Rxg2 {[%clk
0:00:10.4]} 43. a6 {[%clk 0:00:14.3]} 43... bxa6 {[%clk 0:00:08.8]} 44. Bxa6
{[%clk 0:00:13.9]} 44... Rg7 {[%clk 0:00:05.3]} 45. Rh3 {[%clk 0:00:10.8]} 45...
Rg4 {[%clk 0:00:03.1]} 46. Rhb3 {[%clk 0:00:08.7]} 46... Rg7 {[%clk 0:00:02.5]}
47. Rh3 {[%clk 0:00:08.2]} 47... Rg4 {[%clk 0:00:02.5]} 48. Rhb3 {[%clk
0:00:08.3]} 48... Rg7 {[%clk 0:00:02.5]} 1/2-1/2

[Event "*** Titled Tuesday Blitz"]
[Site "Chess.com"]
[Date "2020.05.19"]
[Round "9"]
[White "Kapibara_Warri0r"]
[Black "Zmof"]
[Result "0-1"]
[WhiteElo "2074"]
[BlackElo "2237"]
[TimeControl "180+1"]
[EndTime "13:47:21 PDT"]
[Termination "Zmof won on time"]

1. e4 {[%clk 0:03:00.9]} 1... c5 {[%clk 0:02:56.3]} 2. Nf3 {[%clk 0:03:00.4]}
2... Nc6 {[%clk 0:02:53]} 3. d4 {[%clk 0:03:00.6]} 3... cxd4 {[%clk 0:02:52.8]}
4. Nxd4 {[%clk 0:03:01.5]} 4... Qb6 {[%clk 0:02:53.1]} 5. Nb3 {[%clk 0:02:43.7]}
5... Nf6 {[%clk 0:02:52.4]} 6. Nc3 {[%clk 0:02:37.5]} 6... e6 {[%clk 0:02:52]}
7. Be3 {[%clk 0:02:36.9]} 7... Qc7 {[%clk 0:02:51.5]} 8. a3 {[%clk 0:02:18.3]}
8... d6 {[%clk 0:02:50.3]} 9. Bd3 {[%clk 0:02:13.9]} 9... a6 {[%clk 0:02:49.1]}
10. O-O {[%clk 0:02:11.1]} 10... b5 {[%clk 0:02:49]} 11. Kh1 {[%clk 0:02:06.8]}
11... Bb7 {[%clk 0:02:48.8]} 12. f4 {[%clk 0:02:04.1]} 12... Be7 {[%clk
0:02:44.1]} 13. Qe1 {[%clk 0:02:02.1]} 13... O-O {[%clk 0:02:43.1]} 14. Qg3
{[%clk 0:02:01.9]} 14... Kh8 {[%clk 0:02:42.4]} 15. Rae1 {[%clk 0:02:01.1]}
15... b4 {[%clk 0:02:41.3]} 16. axb4 {[%clk 0:01:50.7]} 16... Nxb4 {[%clk
0:02:41]} 17. e5 {[%clk 0:01:34.5]} 17... Nd7 {[%clk 0:02:33.3]} 18. Be4 {[%clk
0:01:20.5]} 18... Bxe4 {[%clk 0:02:27.2]} 19. Nxe4 {[%clk 0:01:19.9]} 19... dxe5
{[%clk 0:01:56.3]} 20. Ng5 {[%clk 0:00:40.5]} 20... Nxc2 {[%clk 0:01:46.9]} 21.
Rc1 {[%clk 0:00:35.3]} 21... Rac8 {[%clk 0:01:29.5]} 22. Na1 {[%clk 0:00:26.8]}
22... exf4 {[%clk 0:00:51.5]} 23. Bxf4 {[%clk 0:00:20.9]} 23... e5 {[%clk
0:00:51.8]} 24. Bd2 {[%clk 0:00:18.7]} 24... Bxg5 {[%clk 0:00:40.5]} 25. Bxg5
{[%clk 0:00:18]} 25... f6 {[%clk 0:00:34.5]} 26. Rxc2 {[%clk 0:00:17.9]} 26...
Qa5 {[%clk 0:00:28.9]} 27. Bd2 {[%clk 0:00:13.5]} 27... Qb5 {[%clk 0:00:25.3]}
28. Rfc1 {[%clk 0:00:12]} 28... Rxc2 {[%clk 0:00:24.2]} 29. Nxc2 {[%clk
0:00:11.8]} 29... Qxb2 {[%clk 0:00:23.4]} 30. Qc3 {[%clk 0:00:11.4]} 30... Qxc3
{[%clk 0:00:20.9]} 31. Bxc3 {[%clk 0:00:12.3]} 31... Rc8 {[%clk 0:00:21.2]} 32.
Ne3 {[%clk 0:00:11.7]} 32... Nb6 {[%clk 0:00:19.8]} 33. Bd2 {[%clk 0:00:11.9]}
33... Rxc1+ {[%clk 0:00:19.7]} 34. Bxc1 {[%clk 0:00:12.8]} 34... Kg8 {[%clk
0:00:19.2]} 35. Kg1 {[%clk 0:00:12.3]} 35... Kf7 {[%clk 0:00:19.6]} 36. Kf2
{[%clk 0:00:12.9]} 36... Ke6 {[%clk 0:00:20.2]} 37. Ke2 {[%clk 0:00:13.4]} 37...
a5 {[%clk 0:00:20.8]} 38. Kd3 {[%clk 0:00:13.5]} 38... f5 {[%clk 0:00:21.3]} 39.
Kc3 {[%clk 0:00:13.5]} 39... Nd5+ {[%clk 0:00:18.7]} 40. Kb3 {[%clk 0:00:11.5]}
40... Nxe3 {[%clk 0:00:17]} 41. Bxe3 {[%clk 0:00:12.4]} 41... f4 {[%clk
0:00:17.6]} 42. Bf2 {[%clk 0:00:12.1]} 42... e4 {[%clk 0:00:17.4]} 43. Ka4
{[%clk 0:00:10.5]} 43... e3 {[%clk 0:00:17]} 44. Be1 {[%clk 0:00:10.6]} 44... g5
{[%clk 0:00:17.5]} 45. Kxa5 {[%clk 0:00:10.7]} 45... Kd5 {[%clk 0:00:18.3]} 46.
Kb4 {[%clk 0:00:11]} 46... Kd4 {[%clk 0:00:18.4]} 47. h4 {[%clk 0:00:09.6]}
47... g4 {[%clk 0:00:17.3]} 48. Bc3+ {[%clk 0:00:06.2]} 48... Kd3 {[%clk
0:00:17.1]} 49. Kb3 {[%clk 0:00:02.9]} 49... f3 {[%clk 0:00:16.4]} 50. gxf3
{[%clk 0:00:02.6]} 50... gxf3 {[%clk 0:00:16.8]} 51. Be1 {[%clk 0:00:02.3]}
51... f2 {[%clk 0:00:16.7]} 0-1

[Event "*** Titled Tuesday Blitz"]
[Site "Chess.com"]
[Date "2020.05.19"]
[Round "9"]
[White "Man-Chuk"]
[Black "AnishGiri"]
[Result "1-0"]
[WhiteElo "2751"]
[BlackElo "2973"]
[TimeControl "180+1"]
[EndTime "13:47:22 PDT"]
[Termination "Man-Chuk won by resignation"]

1. d4 {[%clk 0:03:00.9]} 1... Nf6 {[%clk 0:02:59.6]} 2. c4 {[%clk 0:03:00.3]}
2... e6 {[%clk 0:02:59.6]} 3. Nf3 {[%clk 0:03:00.1]} 3... Bb4+ {[%clk
0:02:59.9]} 4. Nbd2 {[%clk 0:02:56.9]} 4... O-O {[%clk 0:02:59.7]} 5. a3 {[%clk
0:02:56.8]} 5... Be7 {[%clk 0:03:00.2]} 6. e4 {[%clk 0:02:56.8]} 6... d6 {[%clk
0:03:00.8]} 7. Qc2 {[%clk 0:02:56.1]} 7... Nbd7 {[%clk 0:02:30.7]} 8. Be2 {[%clk
0:02:54]} 8... c5 {[%clk 0:02:26.7]} 9. d5 {[%clk 0:02:52.6]} 9... e5 {[%clk
0:02:22.4]} 10. b4 {[%clk 0:02:42.6]} 10... a5 {[%clk 0:02:19.7]} 11. bxa5
{[%clk 0:02:31.2]} 11... Rxa5 {[%clk 0:02:18.6]} 12. a4 {[%clk 0:02:26.1]} 12...
Ne8 {[%clk 0:02:12.5]} 13. Nb3 {[%clk 0:02:25.5]} 13... Ra6 {[%clk 0:02:12.3]}
14. a5 {[%clk 0:02:22.2]} 14... Kh8 {[%clk 0:02:02.7]} 15. g4 {[%clk 0:02:20.4]}
15... b6 {[%clk 0:01:58.5]} 16. Bd2 {[%clk 0:02:18.4]} 16... Nb8 {[%clk
0:01:35.9]} 17. h3 {[%clk 0:02:13.1]} 17... Qd7 {[%clk 0:01:36.3]} 18. axb6
{[%clk 0:01:50.1]} 18... Rxb6 {[%clk 0:01:34.5]} 19. Kf1 {[%clk 0:01:29.2]}
19... Bd8 {[%clk 0:01:33.5]} 20. Kg2 {[%clk 0:01:26.1]} 20... Na6 {[%clk
0:01:33.3]} 21. Rhb1 {[%clk 0:01:10.2]} 21... Nb4 {[%clk 0:01:32.5]} 22. Bxb4
{[%clk 0:01:09.6]} 22... Rxb4 {[%clk 0:01:32.6]} 23. Nxe5 {[%clk 0:01:04.6]}
23... dxe5 {[%clk 0:00:56.3]} 24. Nxc5 {[%clk 0:01:04.7]} 24... Qe7 {[%clk
0:00:49.9]} 25. Rxb4 {[%clk 0:01:04.2]} 25... Qxc5 {[%clk 0:00:50.6]} 26. Rb5
{[%clk 0:01:04.7]} 26... Qc7 {[%clk 0:00:25.8]} 27. c5 {[%clk 0:01:04.8]} 27...
g6 {[%clk 0:00:24]} 28. Qb2 {[%clk 0:00:53]} 28... f5 {[%clk 0:00:20.5]} 29. d6
{[%clk 0:00:46.2]} 29... Qg7 {[%clk 0:00:20.8]} 30. Ra8 {[%clk 0:00:46.2]} 30...
Qd7 {[%clk 0:00:14.2]} 31. Qxe5+ {[%clk 0:00:22.2]} 31... Bf6 {[%clk 0:00:13]}
32. Qd5 {[%clk 0:00:22.9]} 32... fxe4 {[%clk 0:00:12.3]} 33. c6 {[%clk
0:00:22.2]} 33... Qxd6 {[%clk 0:00:12.6]} 34. Rxc8 {[%clk 0:00:22.1]} 34... Qf4
{[%clk 0:00:13.2]} 35. Qc5 {[%clk 0:00:16.5]} 35... Bh4 {[%clk 0:00:09.5]} 36.
Qe3 {[%clk 0:00:12.9]} 36... Qxf2+ {[%clk 0:00:06.2]} 37. Qxf2 {[%clk 0:00:13]}
37... Rxf2+ {[%clk 0:00:07.1]} 38. Kg1 {[%clk 0:00:13.5]} 38... Rxe2 {[%clk
0:00:08]} 39. Rxe8+ {[%clk 0:00:13.3]} 39... Kg7 {[%clk 0:00:08.9]} 40. Rb1
{[%clk 0:00:07.9]} 40... Bg3 {[%clk 0:00:08.1]} 41. c7 {[%clk 0:00:07]} 41...
Bh2+ {[%clk 0:00:01.4]} 42. Kf1 {[%clk 0:00:06.7]} 42... Rc2 {[%clk 0:00:01.8]}
43. c8=Q {[%clk 0:00:06.8]} 43... Rxc8 {[%clk 0:00:02.1]} 44. Rxc8 {[%clk
0:00:07.7]} 1-0

[Event "*** Titled Tuesday Blitz"]
[Site "Chess.com"]
[Date "2020.05.19"]
[Round "9"]
[White "mishikomchedlishvili"]
[Black "Zurability"]
[Result "0-1"]
[WhiteElo "2837"]
[BlackElo "2710"]
[TimeControl "180+1"]
[EndTime "13:47:25 PDT"]
[Termination "Zurability won by resignation"]

1. d4 {[%clk 0:03:00.9]} 1... Nf6 {[%clk 0:02:56.1]} 2. Bg5 {[%clk 0:02:59.9]}
2... d5 {[%clk 0:02:51.8]} 3. e3 {[%clk 0:02:58.4]} 3... e6 {[%clk 0:02:51.9]}
4. c4 {[%clk 0:02:56.8]} 4... Be7 {[%clk 0:02:52.2]} 5. Nc3 {[%clk 0:02:56.2]}
5... O-O {[%clk 0:02:52.2]} 6. Nf3 {[%clk 0:02:55.5]} 6... b6 {[%clk 0:02:50.7]}
7. Bd3 {[%clk 0:02:50.6]} 7... h6 {[%clk 0:02:50.8]} 8. Bxf6 {[%clk 0:02:46]}
8... Bxf6 {[%clk 0:02:51.7]} 9. cxd5 {[%clk 0:02:45.5]} 9... exd5 {[%clk
0:02:51.7]} 10. O-O {[%clk 0:02:45.1]} 10... Be6 {[%clk 0:02:47.2]} 11. Rc1
{[%clk 0:02:44.6]} 11... Nd7 {[%clk 0:02:43.5]} 12. Bb1 {[%clk 0:02:44]} 12...
g6 {[%clk 0:02:36.3]} 13. e4 {[%clk 0:02:37.6]} 13... c6 {[%clk 0:02:31]} 14.
Re1 {[%clk 0:02:34.4]} 14... Re8 {[%clk 0:02:26]} 15. e5 {[%clk 0:02:30.9]}
15... Bg7 {[%clk 0:02:25.8]} 16. h3 {[%clk 0:02:31.6]} 16... a6 {[%clk
0:02:16.4]} 17. Ne2 {[%clk 0:02:30.9]} 17... Rc8 {[%clk 0:01:59.2]} 18. Nf4
{[%clk 0:02:30.2]} 18... Nf8 {[%clk 0:01:59.3]} 19. Qe2 {[%clk 0:02:27.3]} 19...
a5 {[%clk 0:01:55.8]} 20. Red1 {[%clk 0:02:15.5]} 20... Qd7 {[%clk 0:01:49.4]}
21. Rc3 {[%clk 0:02:12.3]} 21... c5 {[%clk 0:01:43]} 22. dxc5 {[%clk 0:01:52]}
22... bxc5 {[%clk 0:01:43.9]} 23. Qc2 {[%clk 0:01:44.2]} 23... Bf5 {[%clk
0:01:01.7]} 24. Qc1 {[%clk 0:01:44.1]} 24... Bxe5 {[%clk 0:00:56.2]} 25. Nxe5
{[%clk 0:01:22.6]} 25... Rxe5 {[%clk 0:00:55.7]} 26. Rxc5 {[%clk 0:01:22.1]}
26... Rxc5 {[%clk 0:00:49.8]} 27. Qxc5 {[%clk 0:01:21.9]} 27... Bxb1 {[%clk
0:00:49.6]} 28. Rxb1 {[%clk 0:01:21.9]} 28... Qf5 {[%clk 0:00:49]} 29. Qc1
{[%clk 0:01:16.2]} 29... d4 {[%clk 0:00:48.8]} 30. b4 {[%clk 0:01:06.7]} 30...
g5 {[%clk 0:00:30.8]} 31. Nh5 {[%clk 0:01:05.4]} 31... Re2 {[%clk 0:00:24.1]}
32. Qf1 {[%clk 0:00:59.1]} 32... Rxa2 {[%clk 0:00:20.1]} 33. bxa5 {[%clk
0:00:50.8]} 33... Rxa5 {[%clk 0:00:17.9]} 34. Rd1 {[%clk 0:00:49]} 34... Ne6
{[%clk 0:00:16.6]} 35. Qc4 {[%clk 0:00:44.9]} 35... Rc5 {[%clk 0:00:13.4]} 36.
Qb4 {[%clk 0:00:44.8]} 36... Kh7 {[%clk 0:00:12.2]} 37. Ng3 {[%clk 0:00:41.2]}
37... Qc2 {[%clk 0:00:12]} 38. Re1 {[%clk 0:00:38.6]} 38... Qc3 {[%clk
0:00:11.6]} 39. Qb1+ {[%clk 0:00:37.7]} 39... d3 {[%clk 0:00:12.2]} 40. Rf1
{[%clk 0:00:32.4]} 40... Qc2 {[%clk 0:00:11.4]} 41. Qb7 {[%clk 0:00:32.1]} 41...
Kg7 {[%clk 0:00:07.9]} 42. Nh5+ {[%clk 0:00:30.6]} 42... Kg6 {[%clk 0:00:08.1]}
43. g4 {[%clk 0:00:18]} 43... d2 {[%clk 0:00:07]} 44. Qf3 {[%clk 0:00:16]} 44...
f5 {[%clk 0:00:06.2]} 45. Ng3 {[%clk 0:00:15.1]} 45... Nd4 {[%clk 0:00:04.2]}
46. Qa8 {[%clk 0:00:13.1]} 46... d1=Q {[%clk 0:00:04.4]} 47. Qg8+ {[%clk
0:00:12.7]} 47... Kf6 {[%clk 0:00:04.9]} 48. Nh5+ {[%clk 0:00:12]} 48... Ke5
{[%clk 0:00:04.9]} 49. Qe8+ {[%clk 0:00:11.8]} 49... Kd5 {[%clk 0:00:05]} 50.
Nf6+ {[%clk 0:00:11.9]} 50... Kc4 {[%clk 0:00:05.3]} 51. Qf7+ {[%clk 0:00:11]}
51... Kc3 {[%clk 0:00:05.6]} 0-1

[Event "*** Titled Tuesday Blitz"]
[Site "Chess.com"]
[Date "2020.05.19"]
[Round "9"]
[White "Elbek_Jumanov"]
[Black "TregubovP"]
[Result "0-1"]
[WhiteElo "2430"]
[BlackElo "2567"]
[TimeControl "180+1"]
[EndTime "13:47:25 PDT"]
[Termination "TregubovP won by resignation"]

1. c4 {[%clk 0:03:00.9]} 1... c5 {[%clk 0:02:58.8]} 2. Nf3 {[%clk 0:03:00.8]}
2... Nc6 {[%clk 0:02:58.8]} 3. Nc3 {[%clk 0:03:00.6]} 3... Nf6 {[%clk
0:02:59.3]} 4. g3 {[%clk 0:03:00.7]} 4... d5 {[%clk 0:02:58.5]} 5. cxd5 {[%clk
0:03:00.1]} 5... Nxd5 {[%clk 0:02:58.3]} 6. Bg2 {[%clk 0:03:00.8]} 6... Nc7
{[%clk 0:02:58.9]} 7. O-O {[%clk 0:03:00.4]} 7... e5 {[%clk 0:02:59.4]} 8. d3
{[%clk 0:02:58.5]} 8... Be7 {[%clk 0:02:57.7]} 9. a3 {[%clk 0:02:58.3]} 9... O-O
{[%clk 0:02:54.3]} 10. Be3 {[%clk 0:02:58.8]} 10... f6 {[%clk 0:02:47.7]} 11.
Rc1 {[%clk 0:02:55.8]} 11... Be6 {[%clk 0:02:44.3]} 12. Ne4 {[%clk 0:02:50.7]}
12... b6 {[%clk 0:02:41.9]} 13. b4 {[%clk 0:02:49.2]} 13... Nd5 {[%clk
0:02:32.9]} 14. bxc5 {[%clk 0:02:45.6]} 14... Nxe3 {[%clk 0:02:31.1]} 15. fxe3
{[%clk 0:02:44.5]} 15... f5 {[%clk 0:02:26.4]} 16. Nd6 {[%clk 0:02:19.3]} 16...
bxc5 {[%clk 0:02:12.4]} 17. Nc4 {[%clk 0:02:19]} 17... e4 {[%clk 0:02:08]} 18.
dxe4 {[%clk 0:02:16.3]} 18... fxe4 {[%clk 0:02:05.3]} 19. Nfd2 {[%clk
0:02:11.2]} 19... Rxf1+ {[%clk 0:01:52.9]} 20. Qxf1 {[%clk 0:02:10.9]} 20... Bg5
{[%clk 0:01:53]} 21. Bxe4 {[%clk 0:02:02.4]} 21... Rc8 {[%clk 0:01:53]} 22. Qf3
{[%clk 0:01:56.3]} 22... Ne5 {[%clk 0:01:43.2]} 23. Nxe5 {[%clk 0:01:53.8]}
23... Qxd2 {[%clk 0:01:43.3]} 24. Rf1 {[%clk 0:01:40.3]} 24... Qxe3+ {[%clk
0:01:42.8]} 25. Kg2 {[%clk 0:01:36.8]} 25... c4 {[%clk 0:01:26.6]} 26. h4 {[%clk
0:00:53.2]} 26... Qxf3+ {[%clk 0:01:25]} 27. Nxf3 {[%clk 0:00:53.1]} 27... Bf6
{[%clk 0:01:23.7]} 28. Rc1 {[%clk 0:00:50.8]} 28... Bb2 {[%clk 0:01:20.7]} 29.
Rc2 {[%clk 0:00:51]} 29... Bxa3 {[%clk 0:01:20.7]} 30. Ra2 {[%clk 0:00:51.4]}
30... Bc5 {[%clk 0:01:19.9]} 31. Ng5 {[%clk 0:00:47.3]} 31... Bd7 {[%clk
0:00:57.8]} 32. Bd5+ {[%clk 0:00:46.9]} 32... Kf8 {[%clk 0:00:57.7]} 33. Bxc4
{[%clk 0:00:47]} 33... Ke7 {[%clk 0:00:44]} 34. e4 {[%clk 0:00:39.9]} 34... h6
{[%clk 0:00:42.6]} 35. Nf3 {[%clk 0:00:37.2]} 35... Bc6 {[%clk 0:00:40.1]} 36.
Re2 {[%clk 0:00:25.9]} 36... a5 {[%clk 0:00:33.6]} 37. Ne5 {[%clk 0:00:25.6]}
37... Be8 {[%clk 0:00:34]} 38. Bd5 {[%clk 0:00:23.4]} 38... a4 {[%clk
0:00:32.1]} 39. Rc2 {[%clk 0:00:21.7]} 39... Rc7 {[%clk 0:00:23.6]} 40. Nd3
{[%clk 0:00:18.5]} 40... Bd6 {[%clk 0:00:23]} 41. Rb2 {[%clk 0:00:17.6]} 41...
Rc3 {[%clk 0:00:20.5]} 42. Nf4 {[%clk 0:00:16.6]} 42... a3 {[%clk 0:00:19.4]}
43. Rb7+ {[%clk 0:00:15.6]} 43... Rc7 {[%clk 0:00:19.5]} 44. Rb6 {[%clk
0:00:15.2]} 44... Ra7 {[%clk 0:00:19.1]} 45. Rb1 {[%clk 0:00:12.8]} 45... Bf7
{[%clk 0:00:17.2]} 46. Bxf7 {[%clk 0:00:11.7]} 46... Kxf7 {[%clk 0:00:17.5]} 47.
Nd5 {[%clk 0:00:12.6]} 47... a2 {[%clk 0:00:17.1]} 48. Rf1+ {[%clk 0:00:12.4]}
48... Kg8 {[%clk 0:00:15.8]} 49. Nc3 {[%clk 0:00:13.1]} 49... a1=Q {[%clk
0:00:14.9]} 0-1